bitfinex-derivatives/quotes_ETHF0:USTF0_20251223
["timestamp","ask_amount","ask_price","bid_price","bid_amount"]
[1766531272040,3.386209,2955.4,2954.3,3.384]
[1766531273033,3.386209,2955.4,2954.3,3.38644444]
[1766531277343,3.386209,2955.4,2954.3,0.00244444]
[1766531277544,3.386209,2955.4,2954.3,3.38644444]
[1766531282042,3.386209,2955.4,2954.3,0.00244444]
[1766531282645,3.386209,2955.4,2954.3,3.38644444]
[1766531283952,0.84248066,2955.2,2954.3,3.38644444]
[1766531284149,3.385,2955.1,2954.3,3.38644444]
[1766531284344,0.84248066,2955.0,2953.8,0.84248066]
[1766531284550,0.84248066,2954.8,2953.9,3.385]
[1766531284742,3.385,2954.7,2953.9,3.385]
[1766531285249,0.39948784,2954.7,2954.4,0.84248066]
[1766531285449,0.004209,2955.4,2954.4,0.8461809]
[1766531285651,7.568,2955.3,2954.4,0.8461809]
[1766531286251,7.568,2955.3,2954.6,0.84248066]
[1766531287951,7.568,2955.3,2954.5,3.385]
[1766531290653,0.004209,2955.4,2954.5,3.385]
[1766531291151,3.385,2955.6,2954.5,3.385]
[1766531292053,0.16919,2956.6,2954.5,3.385]
[1766531292054,0.16915,2957.3,2955.5,1.29928762]
[1766531292252,0.16915,2957.3,2955.3,0.16926]
[1766531292253,4.3740292,2957.2,2955.3,0.16926]
[1766531292556,3.385,2957.2,2955.4,4.236]
[1766531292754,1.29928762,2956.8,2954.7,1.29928762]
[1766531292951,10.70024478,2956.7,2954.8,17.786]
[1766531293152,0.00507606,2956.0,2954.8,17.786]
[1766531296657,0.00507606,2956.0,2954.9,9.322]
[1766531298961,3.385,2956.1,2955.1,1.29928762]
[1766531299155,3.384,2956.4,2955.2,3.384]
[1766531300059,0.00507606,2956.1,2955.5,0.00507606]
[1766531300358,0.00507606,2956.1,2955.6,3.384]
[1766531300560,3.384,2956.0,2955.2,3.384]
[1766531306569,0.00507606,2956.1,2955.2,3.384]
[1766531307066,3.384,2956.4,2955.4,1.29928762]
[1766531307258,3.384,2956.4,2955.5,9.32]
[1766531307459,9.712,2956.7,2955.5,9.32]
[1766531307856,9.712,2956.7,2955.6,5.936]
[1766531308068,0.00507606,2956.4,2955.9,0.00507606]
[1766531308256,0.00507606,2956.4,2955.8,3.384]
[1766531308458,0.00507606,2956.4,2955.6,5.936]
[1766531308459,0.84667405,2956.4,2955.6,5.936]
[1766531308774,0.84667405,2956.4,2955.7,3.384]
[1766531309070,4.23067405,2956.4,2955.5,3.384]
[1766531310769,3.38907606,2956.4,2955.5,3.384]
[1766531321492,9.712,2956.7,2955.7,0.00507606]
[1766531321685,3.384,2956.7,2955.8,3.384]
[1766531322193,3.384,2956.7,2955.9,3.384]
[1766531322479,0.00507606,2956.6,2955.7,0.00507606]
[1766531322886,0.00507606,2956.6,2955.8,3.384]
[1766531325586,0.00507606,2956.6,2955.7,0.00507606]
[1766531325884,0.00507606,2956.6,2955.8,3.384]
[1766531332289,0.00507606,2956.6,2955.7,0.00507606]
[1766531332492,0.00507606,2956.6,2955.8,9.319]
[1766531342294,0.00507606,2956.6,2955.7,0.00507606]
[1766531342498,0.00507606,2956.6,2955.8,9.318]
[1766531350897,3.384,2956.7,2955.8,9.318]
[1766531351303,2.82982394,2956.7,2955.8,9.318]
[1766531351503,1.74782394,2956.7,2955.8,9.318]
[1766531351689,3.383,2957.0,2955.8,9.318]
[1766531351885,0.00507606,2956.7,2955.8,9.318]
[1766531352099,3.383,2957.0,2955.8,9.318]
[1766531353095,0.00507606,2956.7,2955.7,0.00507606]
[1766531353501,0.00507606,2956.7,2955.8,3.557]
[1766531354691,0.00507606,2956.7,2955.7,0.00507606]
[1766531354895,0.00507606,2956.7,2955.8,9.316]
[1766531355392,0.00507606,2956.7,2955.7,0.00507606]
[1766531355587,3.38807606,2956.7,2955.8,3.416]
[1766531355792,3.38807606,2956.7,2955.9,3.383]
[1766531357096,3.38807606,2956.7,2955.7,0.00507606]
[1766531377002,0.00507606,2956.7,2955.7,0.00507606]
[1766531377207,0.00507606,2956.7,2955.8,0.84150688]
[1766531377405,0.00507606,2956.7,2955.9,3.383]
[1766531377611,3.383,2957.0,2956.0,4.99]
[1766531377812,3.38554893,2957.3,2956.0,5.83150688]
[1766531378105,3.38554893,2957.3,2956.1,8.459]
[1766531378303,3.38554893,2957.3,2956.2,3.383]
[1766531378504,3.383,2957.6,2956.4,0.84150688]
[1766531378814,3.383,2957.9,2956.5,3.383]
[1766531379008,3.383,2957.9,2956.6,5.932]
[1766531379908,0.00507606,2957.5,2957.0,0.00507606]
[1766531380112,0.00507606,2957.5,2957.1,3.383]
[1766531381701,3.3867128,2957.9,2957.1,3.383]
[1766531382707,0.00338402,2957.8,2957.1,3.383]
[1766531383909,0.00338402,2957.8,2957.4,0.84078167]
[1766531384102,3.3867128,2957.9,2957.4,0.84078167]
[1766531388314,3.3867128,2957.9,2957.2,0.84078167]
[1766531394627,3.3867128,2957.9,2957.0,0.84585773]
[1766531394828,3.3867128,2957.9,2957.1,3.382]
[1766531395325,3.3867128,2957.9,2957.2,3.382]
[1766531396734,3.3867128,2957.9,2957.2,4.22278167]
[1766531396935,3.3867128,2957.9,2957.4,0.84078167]
[1766531397736,3.3867128,2957.9,2957.2,3.382]
[1766531397934,3.3867128,2957.9,2957.5,0.84078167]
[1766531398437,3.3867128,2957.9,2957.3,0.84078167]
[1766531400430,3.3867128,2957.9,2957.0,0.00507606]
[1766531400628,3.3867128,2957.9,2957.1,3.382]
[1766531400830,3.3867128,2957.9,2957.1,4.22278167]
[1766531401635,3.3867128,2957.9,2957.0,0.00507606]
[1766531401835,0.84078167,2957.5,2956.6,3.18920038]
[1766531402142,3.382,2957.4,2956.6,1.49290038]
[1766531402333,3.382,2957.3,2956.6,1.49290038]
[1766531402833,0.00507606,2957.2,2956.7,0.00507606]
[1766531403033,0.00507606,2957.2,2956.5,0.84078167]
[1766531403230,0.00507606,2957.2,2956.4,3.1851]
[1766531403538,0.00507606,2957.2,2956.3,0.84078167]
[1766531403539,0.00507606,2957.2,2956.3,3.382]
[1766531403933,0.00507606,2957.2,2956.5,0.84078167]
[1766531404249,0.00507606,2957.2,2956.6,0.00507606]
[1766531405036,0.00507606,2957.2,2956.5,3.382]
[1766531405232,0.00507606,2957.2,2956.5,1.8814]
[1766531405438,0.84078167,2957.1,2956.0,0.84078167]
[1766531405636,3.382,2957.0,2956.1,3.382]
[1766531406153,3.382,2957.0,2956.3,0.00507606]
[1766531407643,3.382,2957.0,2956.1,3.38459057]
[1766531408747,3.382,2957.0,2956.3,0.00507606]
[1766531408948,0.84078167,2956.7,2955.9,3.382]
[1766531409246,3.382,2956.6,2955.9,3.1851]
[1766531409843,3.382,2956.6,2956.0,0.00507606]
[1766531410041,3.382,2956.6,2956.0,0.00769212]
[1766531414955,3.382,2956.6,2955.8,3.383]
[1766531415153,3.382,2956.6,2955.2,0.84078167]
[1766531415154,0.84078167,2956.5,2955.2,0.84078167]
[1766531415350,0.84078167,2956.3,2955.5,3.383]
[1766531415551,3.383,2956.2,2955.5,3.383]
[1766531415844,3.383,2956.2,2955.5,4.22378167]
[1766531416051,3.383,2956.2,2955.6,0.00338402]
[1766531417555,3.383,2956.2,2955.6,3.38638402]
[1766531421258,3.383,2956.2,2955.6,0.00338402]
[1766531421455,3.383,2956.2,2955.6,3.3779241]
[1766531422660,3.383,2956.2,2955.5,0.00359937]
[1766531422858,3.383,2956.2,2955.6,3.383]
[1766531423560,3.383,2956.2,2955.7,0.84078167]
[1766531423759,3.383,2956.6,2956.0,0.84078167]
[1766531424258,3.383,2956.9,2956.2,0.84078167]
[1766531424459,3.383,2956.9,2956.0,0.84078167]
[1766531424658,3.383,2956.9,2955.9,3.383]
[1766531424962,3.383,2956.9,2956.0,3.383]
[1766531425262,3.383,2956.9,2956.1,3.383]
[1766531426961,4.22378167,2956.9,2956.1,3.383]
[1766531429465,3.383,2956.9,2956.1,3.383]
[1766531431660,0.84078167,2956.8,2956.1,3.383]
[1766531433066,0.84078167,2956.4,2955.5,0.00359937]
[1766531433363,0.84078167,2956.2,2955.6,3.383]
[1766531433567,3.383,2956.1,2955.6,3.383]
[1766531435769,3.383,2956.1,2955.5,0.00359937]
[1766531435968,0.84078167,2955.9,2955.2,3.383]
[1766531436171,0.00507606,2955.8,2955.1,3.383]
[1766531436372,0.00507606,2955.8,2955.2,0.84078167]
[1766531436573,3.383,2956.1,2955.2,0.84078167]
[1766531436972,3.38710412,2956.1,2955.2,0.84323302]
[1766531437674,0.00507606,2955.9,2955.4,0.00507606]
[1766531438575,3.38710412,2956.1,2955.4,0.00507606]
[1766531438576,3.38710412,2956.1,2955.4,4.22985773]
[1766531438771,0.00410412,2956.1,2955.4,4.22985773]
[1766531439469,0.00507606,2956.0,2955.4,4.22985773]
[1766531440072,0.00507606,2956.0,2955.4,3.38907606]
[1766531441176,0.00507606,2956.0,2955.5,0.84078167]
[1766531442677,0.00507606,2956.0,2955.4,3.38907606]
[1766531444170,0.00507606,2956.0,2955.4,0.00507606]
[1766531444371,0.00507606,2956.0,2955.5,3.384]
[1766531444671,0.00507606,2956.0,2955.4,0.00507606]
[1766531444876,0.00507606,2956.0,2955.5,3.384]
[1766531452688,0.00410412,2956.1,2955.5,3.384]
[1766531452896,3.384,2956.7,2955.5,3.384]
[1766531453092,3.384,2956.6,2955.6,0.84169124]
[1766531453393,3.384,2957.0,2955.7,5.339]
[1766531453594,3.384,2957.0,2955.8,3.542]
[1766531453793,0.00507606,2956.7,2955.8,6.926]
[1766531454089,0.00507606,2956.7,2955.4,0.17433606]
[1766531454288,0.00507606,2956.7,2955.5,3.384]
[1766531454289,3.38907606,2956.7,2955.5,3.384]
[1766531454494,3.38907606,2956.7,2955.5,3.472]
[1766531455691,3.38907606,2956.7,2955.4,4.56507606]
[1766531455991,3.38907606,2956.7,2955.5,3.384]
[1766531458294,3.55826606,2956.7,2955.4,0.00507606]
[1766531459091,40.8,2956.6,2955.4,0.00507606]
[1766531459295,8.46,2956.5,2955.4,0.00507606]
[1766531459483,3.384,2956.4,2955.4,0.00507606]
[1766531463196,6.286,2956.3,2955.4,0.00507606]
[1766531466988,6.286,2956.3,2955.2,0.00245135]
[1766531467496,0.16922,2956.2,2954.9,3.384]
[1766531467699,1.01092124,2956.0,2954.7,3.384]
[1766531468397,0.16923,2956.0,2954.7,3.38733359]
[1766531469199,0.16923,2956.0,2955.1,0.00507606]
[1766531471803,0.16923,2955.9,2954.7,3.38733359]
[1766531472005,9.668,2955.8,2954.7,3.38733359]
[1766531475806,9.668,2955.8,2954.7,0.00333359]
[1766531476009,9.668,2955.8,2954.7,3.38733359]
[1766531477006,9.668,2955.8,2954.7,0.00333359]
[1766531477197,9.668,2955.8,2954.7,3.38733359]
[1766531478508,9.668,2955.8,2954.7,0.00333359]
[1766531478708,9.668,2955.8,2954.7,3.38733359]
[1766531480509,9.668,2955.8,2954.7,0.00333359]
[1766531480809,9.668,2955.8,2954.7,3.38733359]
[1766531481511,9.668,2955.8,2954.7,0.00333359]
[1766531484205,0.84169124,2955.6,2954.7,0.00333359]
[1766531484411,3.385,2955.5,2954.3,3.385]
[1766531484610,0.00507606,2955.2,2954.2,3.385]
[1766531484807,3.385,2955.1,2953.4,0.89410681]
[1766531485006,3.006,2955.0,2953.5,3.385]
[1766531485211,3.006,2955.0,2953.6,3.385]
[1766531485405,3.006,2955.0,2953.7,3.385]
[1766531485609,3.006,2955.0,2953.6,0.00242619]
[1766531485814,3.006,2955.0,2953.7,3.385]
[1766531486410,3.006,2955.0,2953.6,0.00242619]
[1766531486709,3.006,2955.0,2953.7,3.385]
[1766531490619,9.669,2954.9,2953.7,3.385]
[1766531490922,9.67302917,2954.9,2953.7,3.385]
[1766531492517,9.67302917,2954.9,2953.6,0.00242619]
[1766531492717,9.67302917,2954.9,2953.7,3.385]
[1766531493916,9.67302917,2954.9,2953.8,3.385]
[1766531505139,3.38902917,2954.9,2953.8,3.385]
[1766531505930,3.38902917,2954.9,2954.1,0.8424171]
[1766531506132,3.38902917,2954.9,2954.2,3.385]
[1766531506433,0.8424171,2954.7,2953.9,3.385]
[1766531506629,3.385,2954.6,2953.9,3.385]
[1766531507739,3.385,2954.6,2953.9,4.2274171]
[1766531508534,3.385,2954.6,2953.9,3.385]
[1766531509041,6.281,2954.8,2954.1,0.8424171]
[1766531509238,0.00402917,2954.9,2954.1,0.8424171]
[1766531509438,3.38902917,2954.9,2954.2,3.385]
[1766531513252,3.38902917,2954.9,2953.6,0.17178619]
[1766531513253,4.23144627,2954.9,2953.7,0.8424171]
[1766531513449,4.23144627,2954.9,2953.8,8.02]
[1766531514035,3.38902917,2954.9,2953.9,0.8424171]
[1766531514244,3.38902917,2954.9,2954.1,0.8424171]
[1766531514445,3.38902917,2954.9,2954.2,3.385]
[1766531516141,3.38902917,2954.9,2954.1,0.8424171]
[1766531516341,3.38902917,2954.9,2954.2,3.385]
[1766531517950,3.38902917,2954.9,2954.1,0.8424171]
[1766531518249,3.38902917,2954.9,2954.2,3.385]
[1766531518646,0.00507606,2955.2,2954.4,0.8424171]
[1766531518949,0.00507606,2955.2,2954.5,3.385]
[1766531519547,4.23575064,2955.2,2954.4,3.385]
[1766531519846,4.23575064,2955.2,2954.3,3.385]
[1766531520444,4.23575064,2955.2,2953.6,0.00242619]
[1766531520645,0.8424171,2955.0,2953.9,0.8424171]
[1766531520849,3.385,2954.9,2953.9,0.8424171]
[1766531521047,3.385,2954.9,2954.0,3.385]
[1766531521244,3.385,2954.9,2954.1,0.8424171]
[1766531521753,0.00833354,2955.2,2954.5,0.8424171]
[1766531522044,0.00833354,2955.2,2954.4,4.2274171]
[1766531523152,0.00833354,2955.2,2954.6,0.8424171]
[1766531523353,0.00833354,2955.2,2954.7,3.385]
[1766531524153,0.00833354,2955.2,2954.4,0.8424171]
[1766531524354,0.00833354,2955.2,2954.5,3.385]
[1766531533964,2.7897,2955.6,2954.9,0.8424171]
[1766531534155,2.7897,2955.6,2954.9,4.2274171]
[1766531534955,0.00507606,2955.5,2955.0,0.00507606]
[1766531555183,3.384,2956.7,2955.4,0.8424171]
[1766531555383,3.384,2956.7,2955.5,4.2264171]
[1766531555983,0.00507606,2956.4,2955.5,4.2264171]
[1766531556278,0.00507606,2956.4,2955.5,3.384]
[1766531556481,0.8424171,2956.2,2955.4,3.384]
[1766531556680,0.8424171,2956.2,2955.0,0.84749316]
[1766531556888,0.8424171,2956.2,2955.1,3.384]
[1766531557089,3.384,2956.3,2955.2,0.8424171]
[1766531559688,0.8424171,2956.2,2955.1,3.384]
[1766531560093,0.8424171,2956.0,2955.0,0.00507606]
[1766531560299,3.384,2955.9,2955.1,3.384]
[1766531560699,0.8424171,2956.2,2955.1,4.2264171]
[1766531560996,3.384,2956.3,2955.7,0.8424171]
[1766531561187,3.384,2956.3,2955.8,3.384]
[1766531563195,3.384,2956.3,2955.7,0.84646591]
[1766531563196,3.384,2956.3,2955.7,0.00404881]
[1766531563392,3.384,2956.3,2955.7,3.384]
[1766531564301,3.384,2956.3,2955.7,3.38766104]
[1766531564802,0.8424171,2956.1,2955.0,0.00507606]
[1766531564998,3.384,2956.0,2955.1,3.384]
[1766531565895,3.384,2956.0,2955.1,3.38784465]
[1766531566804,9.508,2956.3,2955.1,3.38784465]
[1766531568307,9.508,2956.3,2955.2,3.384]
[1766531570507,3.384,2956.3,2955.4,0.84184694]
[1766531570698,3.384,2956.3,2955.5,3.384]
[1766531571905,3.384,2956.3,2955.1,0.17312465]
[1766531572104,3.384,2956.3,2955.2,7.575]
[1766531573005,3.384,2956.3,2955.1,0.17312465]
[1766531573200,3.384,2956.3,2955.2,9.31]
[1766531575206,0.00507606,2956.4,2955.4,0.16926]
[1766531575517,0.00507606,2956.4,2955.5,3.384]
[1766531577004,0.00507606,2956.4,2955.6,9.31]
[1766531577205,0.00507606,2956.4,2955.4,0.16926]
[1766531577414,0.00507606,2956.4,2955.5,4.4]
[1766531577806,0.00507606,2956.4,2955.6,5.926]
[1766531578014,0.00507606,2956.4,2955.7,3.384]
[1766531578208,0.00507606,2956.4,2955.4,0.16926]
[1766531578408,0.00507606,2956.4,2955.5,0.951]
[1766531578608,0.00507606,2956.4,2955.5,4.335]
[1766531578910,0.00507606,2956.4,2955.4,0.16926]
[1766531579212,0.00507606,2956.4,2955.5,9.309]
[1766531579811,9.65172662,2956.7,2955.6,0.16925]
[1766531580117,9.65172662,2956.7,2955.6,1.01109694]
[1766531580414,3.38772662,2956.7,2955.6,1.01109694]
[1766531580800,0.00507606,2956.4,2955.6,1.01109694]
[1766531585622,0.00507606,2956.4,2955.7,9.308]
[1766531586019,0.00507606,2956.4,2955.8,9.308]
[1766531587313,3.38772662,2956.7,2955.8,9.308]
[1766531587520,3.383,2956.9,2956.0,0.84184694]
[1766531587719,9.644,2957.2,2956.1,3.383]
[1766531587913,3.383,2957.2,2956.1,3.383]
[1766531588518,3.38683201,2957.2,2956.1,3.383]
[1766531589217,0.00383201,2957.2,2956.1,3.383]
[1766531589522,0.00507606,2956.9,2956.1,3.383]
[1766531590914,0.00507606,2956.9,2955.4,0.84184694]
[1766531591122,0.00507606,2956.9,2955.5,12.426]
[1766531592526,3.38683201,2957.2,2955.8,0.16924]
[1766531592827,0.00383201,2957.2,2956.0,0.84184694]
[1766531593015,0.00383201,2957.2,2956.1,5.926]
[1766531593220,0.00383201,2957.2,2956.2,3.383]
[1766531593427,0.00338402,2957.0,2956.2,3.383]
[1766531601432,0.00383201,2957.2,2956.2,3.383]
[1766531601629,3.383,2957.6,2956.4,0.1692]
[1766531601829,3.383,2957.6,2956.5,9.4772]
[1766531602029,3.383,2957.6,2956.6,3.383]
[1766531602631,3.38712752,2957.6,2956.8,0.00507606]
[1766531602831,3.38712752,2957.6,2956.9,9.308]
[1766531613944,3.382,2958.6,2956.9,9.308]
[1766531614142,3.382,2958.6,2956.8,0.00507606]
[1766531614343,3.382,2958.6,2956.9,8.814]
[1766531614841,3.55438052,2958.6,2956.8,0.00507606]
[1766531615150,0.98437559,2958.5,2956.9,3.481]
[1766531616545,0.1691,2958.3,2956.8,0.00507606]
[1766531616843,9.633,2958.2,2956.9,9.306]
[1766531623049,9.633,2958.2,2956.8,0.00507606]
[1766531623253,9.633,2958.2,2956.9,8.514]
[1766531626050,0.84083415,2958.1,2956.9,9.35483415]
[1766531628852,18.089,2958.2,2956.9,9.35483415]
[1766531629060,0.84083415,2958.1,2956.9,9.35483415]
[1766531634054,0.84083415,2957.7,2957.0,9.305]
[1766531634448,4.22283415,2957.9,2957.0,9.305]
[1766531636156,4.22283415,2957.9,2956.8,0.00507606]
[1766531636357,4.22283415,2957.9,2956.9,9.305]
[1766531638858,4.22283415,2957.9,2956.8,0.00507606]
[1766531639046,0.84083415,2957.7,2956.8,3.38707606]
[1766531639251,4.22283415,2957.9,2956.8,3.38707606]
[1766531639744,45.02283415,2957.9,2956.8,3.38707606]
[1766531640760,0.84083415,2957.7,2956.8,3.38707606]
[1766531640962,44.35112,2957.9,2956.8,3.38707606]
[1766531641264,0.84083415,2957.7,2956.8,3.38707606]
[1766531641651,3.382,2957.9,2956.9,0.84083415]
[1766531641850,3.382,2957.9,2957.1,0.84083415]
[1766531642053,3.382,2957.9,2957.1,4.22283415]
[1766531645163,9.633,2958.2,2957.3,0.84083415]
[1766531645457,49.25930052,2958.6,2957.9,0.84083415]
[1766531645458,3.38530052,2958.6,2957.9,0.84083415]
[1766531645649,3.38530052,2958.6,2957.9,3.382]
[1766531646861,0.00330052,2958.6,2957.9,3.382]
[1766531647058,3.382,2958.9,2958.1,0.84083415]
[1766531647356,3.382,2958.9,2958.2,3.382]
[1766531648058,0.27198849,2959.8,2958.2,3.382]
[1766531648059,3.551,2960.0,2958.2,4.22283415]
[1766531648264,3.382,2960.0,2959.2,0.84083415]
[1766531648569,0.84083415,2960.2,2959.3,3.382]
[1766531648859,0.84083415,2960.0,2959.4,3.382]
[1766531649058,3.382,2959.9,2959.4,3.38602173]
[1766531649857,3.382,2959.9,2958.8,0.00507606]
[1766531650154,3.382,2959.9,2959.0,6.76183415]
[1766531651051,3.382,2959.9,2959.0,6.76530047]
[1766531656862,3.382,2959.9,2959.0,0.84430047]
[1766531657068,3.382,2959.9,2959.1,9.3]
[1766531657658,3.382,2959.9,2959.2,3.38]
[1766531661162,3.38,2960.3,2959.6,0.84083415]
[1766531661469,0.84083415,2960.2,2959.6,3.38]
[1766531662069,0.84322755,2960.2,2959.6,3.38]
[1766531664164,0.84083415,2960.0,2959.0,0.00346632]
[1766531664371,4.22083415,2960.0,2959.1,3.38]
[1766531665268,0.84083415,2959.6,2959.0,0.00346632]
[1766531665473,3.38,2959.6,2959.0,0.00346632]
[1766531665768,8.321,2960.0,2959.4,0.84083415]
[1766531665970,8.321,2960.0,2959.3,3.38]
[1766531667064,0.0023934,2960.2,2959.7,0.84083415]
[1766531667266,0.0023934,2960.2,2959.5,0.84083415]
[1766531667468,0.0023934,2960.2,2959.3,3.38]
[1766531670678,3.38,2960.3,2959.5,0.84083415]
[1766531671583,3.38337955,2960.3,2959.5,0.84083415]
[1766531671879,3.38337955,2960.3,2959.2,4.53]
[1766531672065,3.38337955,2960.3,2959.3,3.38]
[1766531674075,3.38337955,2960.3,2959.2,0.84083415]
[1766531674274,3.38337955,2960.3,2959.3,9.297]
[1766531675474,0.00337955,2960.3,2959.8,0.84083415]
[1766531675776,3.38,2960.6,2959.8,4.22083415]
[1766531675971,3.38,2960.6,2959.8,7.08683415]
[1766531676168,3.38,2960.6,2959.6,0.84083415]
[1766531676373,3.38,2960.6,2959.7,9.297]
[1766531676574,3.38,2960.6,2959.8,3.38]
[1766531676770,3.38332262,2960.6,2959.8,3.38]
[1766531680379,3.38332262,2960.6,2959.8,4.22083415]
[1766531680969,3.38332262,2960.6,2959.0,0.00346632]
[1766531680970,5.765,2960.5,2959.0,0.00346632]
[1766531681171,0.84083415,2960.3,2959.1,10.13583415]
[1766531681370,3.379,2960.2,2959.1,10.13583415]
[1766531683774,2.5489,2960.2,2959.6,0.84083415]
[1766531684679,2.5489,2960.2,2959.5,3.379]
[1766531685582,2.5489,2960.2,2959.4,0.84083415]
[1766531685783,2.5489,2960.2,2959.5,3.379]
[1766531685985,2.5489,2960.2,2959.4,0.84083415]
[1766531686182,2.5489,2960.2,2959.5,3.379]
[1766531687482,0.08399897,2960.2,2959.6,0.84083415]
[1766531687896,0.08399897,2960.2,2959.2,1.00987415]
[1766531688185,0.08399897,2960.2,2959.3,9.295]
[1766531692684,0.08399897,2960.2,2959.4,9.295]
[1766531694688,0.08399897,2960.2,2959.3,3.379]
[1766531700193,8.70198897,2960.2,2959.0,0.00346632]
[1766531700792,8.53299897,2960.2,2959.0,0.00346632]
[1766531700993,0.16901,2959.8,2958.8,0.00507606]
[1766531701295,9.614,2959.7,2958.8,0.00507606]
[1766531701490,9.78302,2959.7,2958.8,0.00507606]
[1766531701794,9.78302,2959.7,2958.8,0.00169656]
[1766531701985,9.78302,2959.7,2958.8,0.00524452]
[1766531702182,0.16903,2959.5,2958.1,3.379]
[1766531702389,0.16904,2959.3,2957.4,4.25332817]
[1766531702591,0.16904,2959.3,2957.5,6.785]
[1766531703094,0.00504719,2958.7,2958.1,0.00506739]
[1766531703294,3.38404719,2958.7,2958.1,0.00506739]
[1766531703682,3.38404719,2958.7,2957.5,5.39628007]
[1766531703898,3.38404719,2958.7,2957.6,3.379]
[1766531704898,33.801,2960.2,2958.0,0.83948367]
[1766531705098,33.801,2960.2,2957.9,0.00506739]
[1766531705099,0.83948367,2959.9,2957.9,0.00506739]
[1766531705304,0.16902,2959.6,2958.0,3.862]
[1766531705502,50.415,2959.5,2958.0,3.862]
[1766531705699,9.615,2959.5,2958.0,3.862]
[1766531706294,9.615,2959.5,2958.0,4.03111]
[1766531708803,9.615,2959.5,2958.0,0.16911]
[1766531709011,9.615,2959.5,2958.1,3.641]
[1766531709405,9.615,2959.5,2958.2,0.83948367]
[1766531709601,3.38,2959.8,2958.2,0.83948367]
[1766531709912,3.38,2959.8,2958.2,1.67896734]
[1766531710111,3.38,2959.8,2958.2,0.83948367]
[1766531711409,3.38,2959.8,2958.3,0.16909]
[1766531711710,3.38,2959.8,2958.4,11.83]
[1766531713406,3.38,2959.8,2958.5,3.38]
[1766531714305,3.38,2959.8,2958.1,0.83948367]
[1766531714511,3.38,2959.8,2958.2,12.275]
[1766531714711,3.38,2959.8,2958.1,0.83948367]
[1766531715017,3.38,2959.8,2958.2,3.948]
[1766531717706,3.38,2959.8,2958.3,1.00857367]
[1766531721313,0.00332262,2960.6,2959.0,0.83948367]
[1766531721514,3.38,2960.5,2959.5,0.00506739]
[1766531721722,9.613,2960.5,2959.5,0.00506739]
[1766531722318,0.00506738,2960.3,2959.5,1e-08]
[1766531722518,3.54899,2960.2,2958.9,3.38]
[1766531722918,3.54899,2960.2,2958.6,1.847]
[1766531722919,3.54899,2960.2,2958.8,3.38]
[1766531723420,3.54899,2960.2,2959.2,0.00506739]
[1766531727428,3.54899,2960.2,2958.1,8.6191]
[1766531727429,0.98538764,2960.1,2958.5,3.38]
[1766531727640,8.45,2960.0,2958.5,3.38]
[1766531727828,9.613,2959.9,2958.5,3.38]
[1766531728336,9.613,2959.9,2958.9,0.00506739]
[1766531728534,0.16901,2959.8,2958.9,0.00506739]
[1766531729033,40.96901,2959.8,2958.9,0.00506739]
[1766531729424,0.16901,2959.8,2958.9,0.00506739]
[1766531731530,0.9865098,2959.7,2958.2,3.38]
[1766531731733,0.16906,2959.0,2957.8,3.38]
[1766531731931,0.16906,2959.0,2957.5,0.00428007]
[1766531731932,0.16907,2958.8,2957.5,0.00428007]
[1766531732130,0.16907,2958.8,2957.5,3.38428007]
[1766531732331,0.00506739,2958.4,2957.9,0.00506739]
[1766531732537,3.38,2958.3,2957.9,0.00506739]
[1766531733033,3.38,2958.3,2957.6,3.38]
[1766531733737,3.38,2958.3,2956.8,0.83948367]
[1766531734032,3.38,2958.3,2957.3,0.00506739]
[1766531734233,3.38,2958.3,2957.4,3.38]
[1766531735136,3.38,2958.3,2957.3,0.00506739]
[1766531735333,3.38,2958.3,2957.3,3.38506739]
[1766531735533,8.452,2958.2,2956.8,0.00338184]
[1766531735838,0.16911,2958.1,2956.9,3.38]
[1766531736033,3.38,2958.0,2956.9,3.38]
[1766531736234,3.071,2957.9,2956.8,0.00338184]
[1766531736434,3.071,2957.9,2956.9,3.38]
[1766531736634,3.071,2957.9,2957.1,0.00506739]
[1766531739040,3.071,2957.9,2957.1,1e-08]
[1766531739342,3.071,2957.9,2956.8,0.00338184]
[1766531742042,3.24012,2957.9,2956.8,0.00338184]
[1766531742343,3.24012,2957.9,2955.5,33.813]
[1766531742344,0.16913,2957.7,2955.3,0.16926]
[1766531742548,0.00506739,2956.8,2955.4,12.448]
[1766531742846,0.00506739,2956.8,2955.5,17.756]
[1766531743246,0.00506739,2956.8,2955.5,17.75892064]
[1766531748355,0.00506739,2956.8,2955.5,0.00292064]
[1766531748551,3.382,2956.7,2955.5,3.38492064]
[1766531750656,3.382,2956.7,2955.5,0.00292064]
[1766531750858,3.382,2956.7,2955.6,3.382]
[1766531751460,3.997,2956.6,2955.5,0.00292064]
[1766531751661,3.997,2956.6,2955.6,3.382]
[1766531754760,3.997,2956.6,2955.6,4.6805615]
[1766531755062,3.382,2956.7,2955.6,4.6805615]
[1766531755758,0.00506739,2956.8,2955.6,4.6805615]
[1766531756255,0.00506739,2956.8,2955.6,4.8498115]
[1766531756463,3.383,2957.0,2955.7,8.458]
[1766531756663,3.383,2957.4,2956.0,1.2985615]
[1766531756960,8.8486915,2957.8,2955.8,0.16924]
[1766531757160,8.8486915,2957.8,2956.1,5.924]
[1766531757460,0.00506739,2957.2,2956.7,0.00506738]
[1766531758455,0.00506739,2957.2,2955.8,0.16924]
[1766531758655,0.00506739,2957.2,2955.9,9.026]
[1766531759964,0.00506739,2957.2,2955.9,10.3245615]
[1766531761266,0.00506739,2957.2,2955.5,1.30148214]
[1766531761563,10.50106739,2957.2,2955.6,3.383]